bitfinex/quotes_BTCUSD_20241208
["timestamp","ask_amount","ask_price","bid_price","bid_amount"]
[1733671467013,0.00720707,99587.0,99585.0,0.180748]
[1733671467483,0.00820707,99587.0,99585.0,0.180748]
[1733671467974,0.00820707,99587.0,99586.0,0.15]
[1733671468255,0.00317281,99587.0,99586.0,0.15100403]
[1733671468922,0.00217281,99587.0,99586.0,0.15100403]
[1733671469169,0.00017281,99587.0,99586.0,0.15100403]
[1733671469385,0.00117281,99587.0,99586.0,0.15100403]
[1733671469612,0.00217281,99587.0,99586.0,0.15]
[1733671469814,0.00117281,99587.0,99586.0,0.15]
[1733671470092,0.00017281,99587.0,99586.0,0.15]
[1733671470316,0.00017281,99587.0,99586.0,0.155]
[1733671470537,0.00017281,99587.0,99586.0,0.25502951]
[1733671473827,0.00017281,99587.0,99586.0,0.26502933]
[1733671480679,0.0017306,99600.0,99587.0,0.361492]
[1733671480894,0.00183986,99590.0,99589.0,0.180742]
[1733671481136,0.00183986,99590.0,99589.0,0.43077151]
[1733671482548,0.00183986,99590.0,99589.0,0.43277151]
[1733671483024,0.08493986,99590.0,99589.0,0.002]
[1733671483256,0.13413986,99590.0,99589.0,0.007]
[1733671483695,0.13923507,99590.0,99589.0,0.007]
[1733671484403,0.13923507,99590.0,99589.0,0.005]
[1733671484623,0.14023507,99590.0,99589.0,0.005]
[1733671485149,0.13923507,99590.0,99589.0,0.005]
[1733671485581,0.13823507,99590.0,99588.0,0.180743]
[1733671488386,0.13823507,99590.0,99588.0,0.181743]
[1733671488884,0.13823507,99590.0,99588.0,0.183743]
[1733671490765,0.00693507,99590.0,99589.0,0.25002951]
[1733671491363,0.00183986,99590.0,99589.0,0.25002951]
[1733671491451,0.00183986,99590.0,99589.0,0.24876373]
[1733671491970,0.00183986,99590.0,99589.0,0.25076373]
[1733671492136,0.00183986,99590.0,99589.0,0.25176373]
[1733671492587,0.00116043,99590.0,99589.0,0.25176373]
[1733671496724,0.00116043,99590.0,99589.0,0.24876373]
[1733671497184,0.00116043,99590.0,99589.0,0.25076373]
[1733671497610,0.00116043,99590.0,99589.0,0.24876373]
[1733671498312,0.00116043,99590.0,99589.0,0.25176373]
[1733671498794,0.00116043,99590.0,99589.0,0.25476373]
[1733671499076,0.00116043,99590.0,99589.0,0.25176373]
[1733671499290,0.00216043,99590.0,99589.0,0.25876373]
[1733671499738,0.00216043,99590.0,99589.0,0.25576373]
[1733671499954,0.00216043,99590.0,99589.0,0.30576373]
[1733671500161,0.0017306,99600.0,99589.0,0.30576373]
[1733671500162,0.0017306,99600.0,99599.0,0.180724]
[1733671500367,0.0017306,99600.0,99599.0,0.48186712]
[1733671500593,0.0017306,99600.0,99599.0,0.48086337]
[1733671501511,0.075,99627.0,99609.0,0.180706]
[1733671501730,0.075,99627.0,99609.0,0.43173921]
[1733671501969,0.075,99627.0,99609.0,0.43073551]
[1733671502864,0.05,99639.0,99609.0,0.43073551]
[1733671502865,0.0783,99638.0,99609.0,0.43073551]
[1733671503316,0.0783,99638.0,99609.0,0.43373551]
[1733671503767,0.0783,99638.0,99609.0,0.43073551]
[1733671504474,0.0783,99638.0,99609.0,0.43273551]
[1733671504920,0.0783,99638.0,99609.0,0.43073551]
[1733671505148,0.0783,99638.0,99609.0,0.63865287]
[1733671505603,0.0783,99638.0,99609.0,0.64265287]
[1733671505839,0.0783,99638.0,99609.0,0.69265287]
[1733671506067,0.0783,99638.0,99619.0,0.330688]
[1733671506295,0.0783,99646.0,99619.0,0.48071751]
[1733671506731,0.0783,99646.0,99619.0,0.56281751]
[1733671508105,0.0783,99646.0,99619.0,0.56581751]
[1733671508337,0.0783,99646.0,99619.0,0.58686813]
[1733671508658,0.0783,99646.0,99619.0,0.57081751]
[1733671508829,0.0783,99646.0,99619.0,0.56581751]
[1733671509082,0.0783,99646.0,99619.0,0.48371751]
[1733671509307,0.0057304,99620.0,99619.0,0.48071751]
[1733671509782,0.0057304,99620.0,99619.0,0.48571751]
[1733671509995,0.00108668,99620.0,99619.0,0.48571751]
[1733671510217,0.00108668,99620.0,99619.0,0.48071751]
[1733671510495,0.00108668,99620.0,99619.0,0.48860055]
[1733671510496,0.00308668,99620.0,99619.0,0.48860055]
[1733671511226,6.8e-07,99620.0,99619.0,0.48860055]
[1733671511924,6.8e-07,99620.0,99619.0,0.57844748]
[1733671512148,6.8e-07,99620.0,99619.0,0.48860055]
[1733671512391,6.8e-07,99620.0,99619.0,0.48960055]
[1733671512392,0.00900068,99620.0,99619.0,0.48960055]
[1733671512627,6.8e-07,99620.0,99619.0,0.48860055]
[1733671513093,0.1239,99652.0,99639.0,0.330652]
[1733671513328,0.1239,99652.0,99639.0,0.43068151]
[1733671514522,0.1239,99652.0,99627.0,0.180672]
[1733671514523,0.08530611,99640.0,99634.0,0.15]
[1733671514747,0.08530611,99640.0,99622.0,0.05]
[1733671514748,0.08530611,99640.0,99639.0,0.180652]
[1733671514977,0.08530611,99640.0,99639.0,0.330652]
[1733671515197,0.08530611,99640.0,99639.0,0.15]
[1733671515666,0.08530611,99640.0,99623.0,0.180679]
[1733671515667,0.133,99639.0,99623.0,0.180679]
[1733671515895,0.083,99637.0,99625.0,0.180677]
[1733671516122,0.083,99637.0,99628.0,0.18067]
[1733671516607,0.083,99637.0,99624.0,0.10002951]
[1733671516864,0.083,99637.0,99609.0,0.23376589]
[1733671516865,0.083,99637.0,99630.0,0.15]
[1733671517096,0.083,99637.0,99634.0,0.18066]
[1733671517325,0.083,99637.0,99634.0,0.28068951]
[1733671517561,0.083,99637.0,99631.0,0.15]
[1733671518252,0.083,99637.0,99632.0,0.180664]
[1733671518988,0.083,99637.0,99632.0,0.361328]
[1733671519219,0.05180611,99640.0,99635.0,0.15]
[1733671519471,0.05180611,99640.0,99637.0,0.180655]
[1733671519705,0.00230611,99640.0,99639.0,0.330652]
[1733671519933,0.00230611,99640.0,99639.0,0.43068151]
[1733671522275,0.00230611,99640.0,99639.0,0.43168151]
[1733671524763,0.00230611,99640.0,99639.0,0.43980856]
[1733671526144,0.00230611,99640.0,99639.0,0.44288925]
[1733671526672,0.05,99667.0,99639.0,0.44288925]
[1733671526673,0.0474,99673.0,99655.0,0.05]
[1733671526898,0.0474,99673.0,99643.0,0.180643]
[1733671526899,0.0775,99682.0,99675.0,0.15]
[1733671527164,0.0775,99682.0,99674.0,0.180588]
[1733671527165,0.00190298,99680.0,99679.0,0.330579]
[1733671527360,0.00190298,99680.0,99679.0,0.43060851]
[1733671529442,0.00290298,99680.0,99679.0,0.44060851]
[1733671529803,0.00190298,99680.0,99679.0,0.43360851]
[1733671529900,0.00190298,99680.0,99679.0,0.43060851]
[1733671530129,0.00290298,99680.0,99679.0,0.44260851]
[1733671530618,0.00290298,99680.0,99679.0,0.45080909]
[1733671530851,0.00290298,99680.0,99679.0,0.012]
[1733671533202,0.00290298,99680.0,99679.0,0.11202951]
[1733671533431,0.00290298,99680.0,99679.0,0.26202951]
[1733671533913,0.00290298,99680.0,99679.0,0.162]
[1733671534921,0.00290298,99680.0,99679.0,0.012]
[1733671539376,0.00741564,99680.0,99679.0,0.012]
[1733671539610,0.00290298,99680.0,99679.0,0.012]
[1733671539844,0.00741564,99680.0,99679.0,0.012]
[1733671540095,0.00290298,99680.0,99679.0,0.012]
[1733671540545,0.00741564,99680.0,99679.0,0.012]
[1733671540770,0.00290298,99680.0,99679.0,0.012]
[1733671541010,0.00741564,99680.0,99679.0,0.012]
[1733671541240,0.00290298,99680.0,99679.0,0.162]
[1733671541477,0.00741564,99680.0,99679.0,0.162]
[1733671541717,0.00290298,99680.0,99679.0,0.162]
[1733671541949,0.00190298,99680.0,99679.0,0.154]
[1733671542424,0.00641382,99680.0,99679.0,0.15]
[1733671542681,0.00190298,99680.0,99679.0,0.15]
[1733671542919,0.00190298,99680.0,99679.0,0.152]
[1733671543587,0.00190298,99680.0,99679.0,0.153]
[1733671545439,0.00190298,99680.0,99679.0,0.25302951]
[1733671549425,0.00190298,99680.0,99679.0,0.153]
[1733671551242,0.00190298,99680.0,99679.0,0.151]
[1733671551485,0.00190298,99680.0,99679.0,0.155]
[1733671551745,0.00190298,99680.0,99679.0,0.151]
[1733671551964,0.00290298,99680.0,99679.0,0.156]
[1733671552200,0.00290298,99680.0,99679.0,0.155]
[1733671552626,0.00290298,99680.0,99679.0,0.157]
[1733671553121,0.00290298,99680.0,99679.0,0.155]
[1733671553354,0.00290298,99680.0,99679.0,0.157]
[1733671554498,0.00290298,99680.0,99679.0,0.25803263]
[1733671554727,0.00290298,99680.0,99679.0,0.25702951]
[1733671556877,0.00101127,99709.0,99679.0,0.25702951]
[1733671556878,0.023,99714.0,99698.0,0.180544]
[1733671557106,0.0121853,99713.0,99698.0,0.180544]
[1733671557323,0.00778199,99727.0,99698.0,0.180544]
[1733671557324,0.023,99718.0,99698.0,0.180544]
[1733671557544,0.18051,99717.0,99698.0,0.180544]
[1733671557773,0.26104851,99718.0,99698.0,0.180544]
[1733671558005,0.10002951,99718.0,99698.0,0.180544]
[1733671558233,0.18051,99717.0,99698.0,0.180544]
[1733671558466,0.009,99714.0,99698.0,0.181544]
[1733671558693,0.180498,99724.0,99698.0,0.180544]
[1733671558928,0.18051,99717.0,99700.0,0.180541]
[1733671559159,0.005,99714.0,99700.0,0.180541]
[1733671559729,0.023,99718.0,99700.0,0.180541]
[1733671559891,0.151,99718.0,99700.0,0.180541]
[1733671560123,0.180508,99719.0,99700.0,0.180541]
[1733671560348,0.009,99717.0,99700.0,0.180541]
[1733671560586,0.180512,99716.0,99698.0,0.181544]
[1733671560816,0.005,99714.0,99698.0,0.001]
[1733671561273,0.005,99714.0,99699.0,0.180543]
[1733671561503,0.07847367,99733.0,99699.0,0.180543]
[1733671561726,0.10002951,99729.0,99699.0,0.180543]
[1733671561929,0.18051,99717.0,99700.0,0.001]
[1733671562221,0.180507,99719.0,99699.0,0.180543]
[1733671562437,0.009,99714.0,99700.0,0.001]
[1733671562657,0.005,99717.0,99700.0,0.001]
[1733671562876,0.180528,99708.0,99700.0,0.001]
[1733671563165,0.1235,99707.0,99700.0,0.001]
[1733671563319,0.1235,99707.0,99688.0,0.15]
[1733671563558,0.1235,99707.0,99691.0,0.00825775]
[1733671563755,0.18053,99706.0,99685.0,0.15]
[1733671564026,0.18053,99706.0,99685.0,0.25002951]
[1733671564265,0.18053,99706.0,99687.0,0.15]
[1733671564518,0.1235,99707.0,99688.0,0.180563]
[1733671564959,0.1235,99707.0,99690.0,0.180559]
[1733671565404,0.00472497,99706.0,99691.0,0.15]
[1733671566086,0.00472497,99706.0,99693.0,0.15]
[1733671567921,0.1235,99707.0,99693.0,0.15]
[1733671568150,0.00472452,99705.0,99693.0,0.15]
[1733671568455,0.00472497,99706.0,99693.0,0.15]
[1733671568672,0.1235,99707.0,99688.0,0.180563]
[1733671568905,0.1235,99707.0,99689.0,0.15]
[1733671569132,0.180534,99704.0,99689.0,0.15]
[1733671569354,0.00472497,99706.0,99689.0,0.15]
[1733671569580,0.00472362,99703.0,99689.0,0.15]
[1733671569806,0.0094091,99705.0,99689.0,0.15]
[1733671570033,0.00472317,99702.0,99688.0,0.15]
[1733671570247,0.00472407,99704.0,99688.0,0.15]
[1733671570465,0.00472272,99701.0,99688.0,0.15]
[1733671570919,0.00472362,99703.0,99689.0,0.001]
[1733671571131,0.00472227,99700.0,99689.0,0.001]
[1733671571352,0.1235,99707.0,99689.0,0.001]
[1733671571353,0.00468534,99699.0,99689.0,0.001]
[1733671571580,0.1235,99707.0,99689.0,0.001]
[1733671571821,0.1235,99707.0,99689.0,0.002]
[1733671572035,0.18994381,99706.0,99689.0,0.001]
[1733671572267,0.00468542,99705.0,99689.0,0.001]
[1733671572483,0.00468542,99704.0,99688.0,0.15]
[1733671572707,0.00468542,99703.0,99688.0,0.151]
[1733671572927,0.00468542,99702.0,99689.0,0.002]
[1733671573194,0.00468542,99702.0,99688.0,0.151]
[1733671573195,0.00472704,99703.0,99688.0,0.15]
[1733671573360,0.00468591,99701.0,99688.0,0.15]
[1733671573573,0.1235,99707.0,99688.0,0.15]
[1733671573574,0.00941249,99702.0,99688.0,0.15]
[1733671573766,0.00468591,99700.0,99688.0,0.15]
[1733671573986,0.1235,99707.0,99688.0,0.15]
[1733671573987,0.00941204,99701.0,99688.0,0.15]
[1733671574212,0.00468591,99700.0,99689.0,0.001]
[1733671574425,0.00468591,99699.0,99689.0,0.001]
[1733671574703,0.1235,99707.0,99689.0,0.001]
[1733671574914,0.19259718,99706.0,99689.0,0.001]
[1733671575126,0.00464122,99705.0,99689.0,0.002]
[1733671575347,0.00464122,99704.0,99690.0,0.10002951]
[1733671575585,0.00472524,99705.0,99701.0,0.180539]
[1733671575586,0.00464122,99703.0,99701.0,0.180539]
[1733671575803,0.001731,99710.0,99705.0,0.180532]
[1733671577480,0.002731,99710.0,99705.0,0.180532]
[1733671577718,0.002731,99710.0,99709.0,0.180525]
[1733671577942,0.002731,99710.0,99709.0,0.28055451]
[1733671578854,0.002731,99710.0,99709.0,0.37070505]
[1733671579066,0.00490359,99710.0,99709.0,0.37070505]
[1733671579292,0.00390359,99710.0,99709.0,0.37070505]
[1733671579449,0.00390359,99710.0,99709.0,0.28055451]
[1733671579450,0.00290359,99710.0,99709.0,0.28055451]
[1733671579651,0.00290359,99710.0,99709.0,0.37462084]
[1733671579873,0.00190359,99710.0,99709.0,0.28055451]
[1733671580308,0.00190359,99710.0,99709.0,0.28955451]
[1733671580882,0.00190359,99710.0,99709.0,0.28655451]
[1733671581116,0.00190359,99710.0,99709.0,0.28955451]
[1733671581327,0.00190359,99710.0,99709.0,0.4479242]
[1733671581536,0.00190359,99710.0,99709.0,0.4419242]
[1733671581758,0.00290359,99710.0,99709.0,0.4479242]
[1733671582766,0.00290359,99710.0,99709.0,0.67996492]
[1733671583155,0.0017328,99740.0,99715.0,0.05]
[1733671583156,0.00463561,99739.0,99715.0,0.05]
[1733671583382,0.00463561,99739.0,99709.0,0.3464992]
[1733671583383,0.00741641,99751.0,99744.0,0.3261]
[1733671583627,0.00741641,99756.0,99755.0,0.330442]
[1733671583837,0.00773784,99769.0,99762.0,0.15]
[1733671584047,0.0017292,99780.0,99762.0,0.15]
[1733671584048,0.00741163,99776.0,99763.0,0.10103165]
[1733671584256,0.0017292,99780.0,99764.0,0.15]
[1733671584462,0.0017292,99780.0,99776.0,0.180403]
[1733671584894,0.00230474,99780.0,99773.0,0.180408]
[1733671585134,0.00230474,99780.0,99765.0,0.10002951]
[1733671585547,0.00230474,99780.0,99767.0,0.180419]
[1733671585753,0.00230474,99780.0,99760.0,0.15]
[1733671585960,0.180398,99779.0,99762.0,0.003]
[1733671586187,0.1856753,99779.0,99773.0,0.001]
[1733671586402,0.1856753,99779.0,99762.0,0.003]
[1733671586403,0.0052773,99779.0,99762.0,0.10302951]
[1733671586636,0.0052773,99779.0,99770.0,0.180414]
[1733671586843,0.00230474,99780.0,99763.0,0.10002951]
[1733671586844,0.00230474,99780.0,99767.0,0.180418]
[1733671588376,0.00230474,99780.0,99767.0,0.181418]
[1733671588587,0.00230474,99780.0,99771.0,0.180412]
[1733671588999,0.00230474,99780.0,99776.0,0.180403]
[1733671589206,0.00230474,99780.0,99777.0,0.1010316]
[1733671589412,0.00230474,99780.0,99777.0,0.10002951]
[1733671590260,0.00230474,99780.0,99778.0,0.1804]
[1733671590482,0.00230474,99780.0,99779.0,0.10002951]
[1733671590697,0.00230474,99780.0,99779.0,0.10103157]
[1733671590938,0.00230474,99780.0,99779.0,0.25103157]
[1733671591123,0.00230474,99780.0,99779.0,0.25002951]
[1733671592451,0.00230474,99780.0,99779.0,0.25202951]
[1733671592871,0.00230474,99780.0,99779.0,0.27972978]
[1733671593496,0.00230474,99780.0,99779.0,0.28072978]
[1733671593942,0.00230474,99780.0,99779.0,0.25302951]
[1733671594151,0.00230474,99780.0,99779.0,0.25202951]
[1733671594370,0.00230474,99780.0,99779.0,0.25502951]
[1733671594586,0.00230474,99780.0,99779.0,0.25302951]
[1733671594799,0.00230474,99780.0,99779.0,0.25802951]
[1733671595006,0.00230474,99780.0,99779.0,0.25302951]
[1733671595388,0.00230474,99780.0,99779.0,0.26889293]
[1733671595482,0.00230474,99780.0,99779.0,0.25802951]
[1733671595697,0.00230474,99780.0,99779.0,0.25002951]
[1733671595919,0.00230474,99780.0,99779.0,0.26202951]
[1733671596344,0.00230474,99780.0,99779.0,0.25802951]
[1733671596612,0.00230474,99780.0,99779.0,0.28972978]
[1733671597016,0.00230474,99780.0,99779.0,0.26202951]
[1733671599742,0.00230474,99780.0,99779.0,0.25402951]
[1733671600149,0.00230474,99780.0,99779.0,0.25002951]
[1733671600562,0.00230474,99780.0,99779.0,0.25102951]
[1733671601210,0.00103227,99780.0,99779.0,0.40092951]
[1733671601425,6e-05,99805.0,99796.0,0.15]
[1733671601662,6e-05,99805.0,99798.0,0.180364]
[1733671601880,0.00023261,99805.0,99799.0,0.10103135]
[1733671602096,0.00023261,99805.0,99799.0,0.10002951]
[1733671602748,0.00223261,99805.0,99799.0,0.10002951]
[1733671602978,0.00023261,99805.0,99799.0,0.10002951]
[1733671603187,0.00223261,99805.0,99799.0,0.10002951]
[1733671603832,0.00223261,99805.0,99782.0,0.180392]
[1733671603833,0.00223261,99805.0,99783.0,0.15]
[1733671604051,0.00223261,99805.0,99785.0,0.15]
[1733671604052,0.180353,99804.0,99785.0,0.15]
[1733671604284,0.18711106,99804.0,99787.0,0.15]
[1733671604498,0.00454427,99803.0,99788.0,0.10002951]
[1733671604714,0.18490127,99802.0,99789.0,0.15]
[1733671604918,0.00454427,99801.0,99791.0,0.15]
[1733671605136,0.00675715,99803.0,99791.0,0.15]
[1733671605338,0.00675535,99801.0,99791.0,0.15]
[1733671605521,0.00454742,99800.0,99791.0,0.15]
[1733671605769,0.00454742,99799.0,99791.0,0.15]
[1733671605977,0.00454742,99799.0,99782.0,0.00873543]
[1733671605978,0.1235,99798.0,99782.0,0.00873543]
[1733671606222,0.180366,99797.0,99776.0,0.180403]
[1733671606410,0.00454742,99796.0,99777.0,0.25002951]
[1733671606643,0.18491642,99795.0,99777.0,0.25002951]
[1733671606905,0.00454742,99794.0,99777.0,0.25002951]
[1733671607320,0.00454742,99793.0,99777.0,0.25002951]
[1733671607531,0.00454742,99792.0,99777.0,0.25002951]
[1733671607741,0.00454742,99791.0,99777.0,0.25002951]
[1733671607951,0.00454742,99790.0,99777.0,0.25002951]
[1733671608157,0.00454742,99789.0,99777.0,0.25002951]
[1733671608370,0.180369,99795.0,99777.0,0.25002951]
[1733671608371,0.00454742,99788.0,99777.0,0.25002951]
[1733671608595,0.00674364,99788.0,99777.0,0.25002951]
[1733671608790,0.0045576,99787.0,99777.0,0.25002951]
[1733671609001,0.0045576,99786.0,99777.0,0.25002951]
[1733671609211,0.0045576,99786.0,99777.0,0.25502951]
[1733671609415,0.01129854,99785.0,99777.0,0.25502951]
[1733671609631,0.0045576,99784.0,99777.0,0.25002951]
[1733671609857,0.0045576,99783.0,99777.0,0.25502951]
[1733671610092,0.0045576,99782.0,99777.0,0.25702951]
[1733671610297,0.0045576,99781.0,99777.0,0.25202951]
[1733671610511,0.0045576,99780.0,99777.0,0.25602951]
[1733671610744,0.0045576,99780.0,99777.0,0.25902951]
[1733671610948,0.0045576,99779.0,99777.0,0.25902951]
[1733671611155,0.180375,99792.0,99777.0,0.25902951]
[1733671611156,0.0045576,99778.0,99777.0,0.25902951]
[1733671611802,0.0045576,99778.0,99777.0,0.25302951]
[1733671612045,0.00457093,99778.0,99777.0,0.26584831]
[1733671612246,0.00457093,99778.0,99777.0,0.26284831]
[1733671612450,0.01189718,99778.0,99777.0,0.26284831]
[1733671612667,0.01189718,99778.0,99777.0,0.27184831]
[1733671612864,0.01189718,99778.0,99777.0,0.26784831]
[1733671612996,0.01189718,99778.0,99777.0,0.27184831]
[1733671613415,0.01189718,99778.0,99777.0,0.12184831]
[1733671614601,0.01189718,99778.0,99777.0,0.11302951]
[1733671614833,0.01863181,99778.0,99777.0,0.11302951]
[1733671615669,0.01863181,99778.0,99777.0,0.013]
[1733671615987,0.09603181,99778.0,99777.0,0.013]
[1733671617895,0.09603181,99778.0,99777.0,0.009]
[1733671618064,0.01863181,99778.0,99777.0,0.009]
[1733671618293,0.01863181,99778.0,99777.0,0.01]
[1733671618741,0.01863181,99778.0,99777.0,0.009]
[1733671619104,0.01863181,99778.0,99777.0,0.001]
[1733671619362,0.01863181,99778.0,99777.0,0.003]
[1733671619807,0.01863181,99778.0,99777.0,0.001]
[1733671620014,0.01863181,99778.0,99777.0,0.003]
[1733671620843,0.01130556,99778.0,99777.0,0.003]
[1733671621851,0.01845092,99778.0,99777.0,0.003]
[1733671622993,0.14055092,99778.0,99777.0,0.003]
[1733671623199,0.13340556,99778.0,99777.0,0.003]
[1733671623880,0.13340556,99778.0,99777.0,0.001]
[1733671624100,0.13340556,99778.0,99770.0,0.0008644]
[1733671624101,0.360804,99777.0,99770.0,0.0008644]
[1733671624310,0.00457093,99776.0,99770.0,0.0008644]
[1733671624514,0.180413,99771.0,99770.0,0.0008644]
[1733671624931,0.18498393,99771.0,99770.0,0.0008644]
[1733671625148,0.19169213,99771.0,99770.0,0.0008644]
[1733671625784,0.19186465,99771.0,99770.0,0.0008644]
[1733671626049,0.19486465,99771.0,99770.0,0.0008644]
[1733671626692,0.19886465,99771.0,99770.0,0.0008644]
[1733671635188,0.19429372,99771.0,99770.0,0.0008644]
[1733671637252,0.29432323,99771.0,99770.0,0.0008644]
[1733671637477,0.29878972,99771.0,99770.0,0.0008644]
[1733671637882,0.34878972,99771.0,99770.0,0.0008644]
[1733671638108,0.42418972,99771.0,99770.0,0.0008644]
[1733671641178,0.48281515,99771.0,99770.0,0.0008644]
[1733671641341,0.70361515,99771.0,99770.0,4e-07]
[1733671641537,0.69914866,99771.0,99770.0,4e-07]
[1733671641741,0.69914866,99771.0,99740.0,0.0008648]
[1733671641742,0.180467,99741.0,99740.0,0.0008648]
[1733671642044,0.31289354,99741.0,99740.0,0.0008648]
[1733671642527,0.41292305,99741.0,99740.0,0.0008648]
[1733671643337,0.4130955,99741.0,99740.0,0.0008648]
[1733671643546,0.4140955,99741.0,99740.0,0.0008648]
[1733671643769,0.4150955,99741.0,99740.0,0.0008648]
[1733671643972,0.4650955,99741.0,99740.0,0.0008648]
[1733671644179,0.5150955,99741.0,99740.0,0.0008648]
[1733671645020,0.5140955,99741.0,99740.0,0.0008648]
[1733671645418,0.5200955,99741.0,99740.0,0.0018648]
[1733671645645,0.8208755,99741.0,99740.0,0.0018648]
[1733671645848,0.61984599,99741.0,99740.0,0.0018648]
[1733671646062,0.50304599,99741.0,99740.0,0.0028648]
[1733671646813,0.48804599,99741.0,99740.0,0.0008648]
[1733671647016,0.31457899,99741.0,99740.0,0.0018648]
[1733671647226,0.32357899,99741.0,99740.0,0.0028648]
[1733671647485,0.31457899,99741.0,99740.0,0.0018648]
[1733671647616,0.30757899,99741.0,99740.0,0.0008648]
[1733671647828,0.31457899,99741.0,99740.0,0.0008648]
[1733671648233,0.31257899,99741.0,99740.0,0.0008648]
[1733671648668,0.31457899,99741.0,99740.0,0.0008648]
[1733671649036,0.30957899,99741.0,99740.0,0.0008648]
[1733671649246,0.31357899,99741.0,99740.0,0.0008648]
[1733671649741,0.30957899,99741.0,99740.0,0.0008648]
[1733671650337,0.30857899,99741.0,99740.0,0.0008648]
[1733671650799,0.30957899,99741.0,99740.0,0.0008648]
[1733671651011,0.30957899,99741.0,99740.0,0.10089431]
[1733671651248,0.30857899,99741.0,99740.0,0.37459685]
[1733671651449,0.30857899,99741.0,99740.0,0.37359431]
[1733671651666,0.30957899,99741.0,99740.0,0.37359431]
[1733671652283,0.30857899,99741.0,99740.0,0.37359431]
[1733671652505,0.30957899,99741.0,99740.0,0.38059431]
[1733671652918,0.30857899,99741.0,99740.0,0.37359431]
[1733671653128,0.30857899,99741.0,99740.0,0.38059431]
[1733671653562,0.30857899,99741.0,99740.0,0.38359431]
[1733671653961,0.30857899,99741.0,99740.0,0.38059431]
[1733671654319,0.30857899,99741.0,99740.0,0.38359431]
[1733671662878,0.30857899,99741.0,99740.0,0.33589431]
[1733671666447,0.30195245,99741.0,99740.0,0.33589431]
[1733671666871,0.30195245,99741.0,99740.0,0.42576314]
[1733671666872,0.30749024,99741.0,99740.0,0.42576314]
[1733671667259,0.30749024,99741.0,99740.0,0.33589431]
[1733671667497,0.30749024,99741.0,99740.0,0.42577507]
[1733671667753,0.20588103,99741.0,99740.0,0.45469431]
[1733671667955,0.20588103,99741.0,99740.0,0.79282911]
[1733671667956,0.03764383,99741.0,99740.0,0.79282911]
[1733671668163,0.0777,99790.0,99778.0,0.180398]
[1733671668366,0.00190122,99780.0,99778.0,0.180398]
[1733671668970,0.00190122,99780.0,99775.0,0.180405]
[1733671669920,0.00190122,99780.0,99769.0,0.180415]
[1733671670130,0.001729,99770.0,99765.0,0.180422]
[1733671670330,0.001729,99770.0,99763.0,0.15]
[1733671670529,0.001729,99770.0,99764.0,0.180425]
[1733671670764,0.00463374,99769.0,99764.0,0.180425]
[1733671670963,0.00463374,99769.0,99763.0,0.15]
[1733671671131,0.00463374,99769.0,99758.0,0.180435]
[1733671671132,0.079429,99770.0,99759.0,0.15]
[1733671671358,0.00463284,99768.0,99759.0,0.15]
[1733671671553,0.079429,99770.0,99759.0,0.15]
[1733671671554,0.00463374,99769.0,99759.0,0.15]
[1733671671741,0.00463194,99767.0,99759.0,0.15]
[1733671671947,0.00463284,99768.0,99759.0,0.15]
[1733671672130,0.00463104,99766.0,99765.0,0.183423]
[1733671672330,0.00463194,99767.0,99765.0,0.184423]
[1733671672655,0.180416,99769.0,99765.0,0.001]
[1733671672861,0.180416,99769.0,99759.0,0.001]
[1733671673141,0.180416,99769.0,99756.0,0.180438]
[1733671673142,0.180424,99765.0,99756.0,0.180438]
[1733671673396,0.180424,99765.0,99753.0,0.15]
[1733671673564,0.00462923,99764.0,99755.0,0.15]
[1733671673715,0.00462923,99764.0,99753.0,0.15]
[1733671675229,0.00462923,99764.0,99756.0,0.18044]
[1733671675552,0.180416,99769.0,99756.0,0.18044]
[1733671676000,0.00463284,99768.0,99756.0,0.18044]
[1733671676338,0.00463284,99768.0,99755.0,0.15]
[1733671676643,0.00463284,99768.0,99758.0,0.180436]
[1733671678560,0.00463284,99768.0,99762.0,0.180428]
[1733671679009,0.049529,99770.0,99762.0,0.180428]
[1733671679211,0.00463194,99767.0,99762.0,0.180428]
[1733671679836,0.049529,99770.0,99762.0,0.180428]
[1733671680240,0.00463374,99769.0,99762.0,0.181428]
[1733671681210,0.00463374,99769.0,99752.0,0.00885844]
[1733671681211,0.083,99767.0,99746.0,0.180458]
[1733671681411,0.00463104,99766.0,99741.0,0.23982778]
[1733671681751,0.083,99767.0,99762.0,0.001]
[1733671682085,0.049529,99770.0,99762.0,0.001]
[1733671682086,0.001729,99770.0,99767.0,0.18042]
[1733671682278,0.001729,99770.0,99768.0,0.10002951]
[1733671682483,0.001729,99770.0,99769.0,0.180416]
[1733671682769,0.001729,99770.0,99769.0,0.28044551]
[1733671683177,0.001729,99770.0,99765.0,0.180423]
[1733671683384,0.001729,99770.0,99759.0,0.15]
[1733671683594,0.001729,99770.0,99761.0,0.15]
[1733671683786,0.001729,99770.0,99762.0,0.180429]
[1733671684020,0.001729,99770.0,99763.0,0.15]
[1733671685185,0.001729,99770.0,99762.0,0.180429]
[1733671685355,0.001729,99770.0,99763.0,0.15]
[1733671686089,0.001729,99770.0,99763.0,0.151]
[1733671686373,0.180416,99769.0,99763.0,0.001]
[1733671686711,0.001729,99770.0,99763.0,0.001]
[1733671687320,0.00464235,99769.0,99763.0,0.001]
[1733671687523,0.001729,99770.0,99763.0,0.001]
[1733671687965,0.001729,99770.0,99759.0,0.180433]
[1733671688165,0.00464235,99769.0,99763.0,0.001]
[1733671688367,0.00464235,99769.0,99747.0,0.330456]
[1733671688568,0.00464235,99769.0,99740.0,0.0837648]
[1733671688569,0.083,99764.0,99763.0,0.001]
[1733671688781,0.26806285,99764.0,99763.0,0.002]
[1733671689018,0.26806285,99764.0,99763.0,0.001]
[1733671689418,0.180433,99760.0,99746.0,0.180456]
[1733671689628,0.180436,99758.0,99747.0,0.001]
[1733671689886,0.00463242,99757.0,99747.0,0.001]
[1733671690099,0.18044,99756.0,99744.0,0.15]
[1733671690457,0.00463218,99755.0,99744.0,0.15]
[1733671690896,0.00463218,99755.0,99745.0,0.18046]
[1733671691422,0.180436,99758.0,99744.0,0.15]
[1733671691632,0.00463218,99754.0,99744.0,0.15]
[1733671691836,0.00463218,99753.0,99744.0,0.157]